Cogmind - Beta 16.1 @@@ ROGUE MODE // 2026.06.19 @ 23:34:37 Player: Ammie Result: Self-destructed Performance ------------- Evolutions (1) 500 Regions Visited (2) 400 Robots Destroyed (55) 275 Value Destroyed (1238) 1238 Prototype IDs (6) 120 Alien Tech Used (0) 0 Bonus (0) 0 TOTAL SCORE: 2533 Bonus ------- None Cogmind --------- Core Integrity 71/400 Matter 275/300 Energy 136/250 System Corruption 3% Temperature Warm (195) Movement Treading (240) Ox1 Location -9/Materials Parts ------- > --- POWER (1) -------- Ion Engine > --- PROPULSION (3) --- Light Treads > --- UTILITY (3) ------ Medium Storage Unit > --- WEAPON (2) ------- Pulse Rifle Ion Cannon > --- INVENTORY (10) --- Ion Engine Light Ion Engine Pulse Rifle Ion Cannon Grenade Launcher Peak State ------------ > --- POWER ------------ Cooled Ion Engine > --- PROPULSION ------- Light Treads Improved Treads Improved Aluminum Leg > --- UTILITY ---------- Improved Heat Sink Small Storage Unit Light Armor Plating > --- WEAPON ----------- Ion Cannon Ion Cannon > --- INVENTORY -------- Ion Engine Light Ion Engine Weight Redist. System Pulse Rifle Pulse Rifle Grenade Launcher [Rating: 20] Favorites ----------- Power Ion Engine Engine Ion Engine Propulsion Aluminum Leg Treads Improved Treads Leg Aluminum Leg Hover Unit Hover Unit Utility Small Storage Unit Device Improved Heat Sink Storage Small Storage Unit Protection Light Armor Plating Weapon Pulse Rifle Energy Gun Pulse Rifle Energy Cannon Ion Cannon Ballistic Gun Assault Rifle Launcher Grenade Launcher Build | -11 -10 -9 ------- Run | Yrd Mat Mat Slots Evolved 2 | . . 2 Power . | . . . Propulsion 1 | . . 1 Utility 1 | . . 1 Weapon . | . . . Parts Attached 43 | 6 10 27 Power 10 | 1 1 8 Engine 10 | 1 1 8 Core . | . . . Reactor . | . . . Propulsion 10 | 2 2 6 Treads 4 | . . 4 Leg 4 | 2 . 2 Wheel . | . . . Hover 2 | . 2 . Flight . | . . . Utility 5 | 1 2 2 Device 2 | . 2 . Storage 2 | 1 . 1 Processor . | . . . Hackware . | . . . Protection 1 | . . 1 Artifact . | . . . Weapon 18 | 2 5 11 Energy Gun 12 | 2 3 7 Energy Cannon 3 | . . 3 Ballistic Gun 2 | . 1 1 Ballistic Cannon . | . . . Launcher 1 | . 1 . Special Weapon . | . . . Impact Weapon . | . . . Slashing Weapon . | . . . Piercing Weapon . | . . . Special Melee Weapon . | . . . Unidentified Prototypes 6 | . . 6 Parts Lost 18 | . 2 16 Power 3 | . . 3 Propulsion 6 | . . 6 Utility 3 | . . 3 Weapon 6 | . 2 4 Highest Loss Streak 4 | . 1 4 To Critical Strikes . | . . . Average Backups 5 | 1 3 6 Power 1 | . 1 1 Propulsion . | . 1 . Utility . | . . . Weapon 2 | . . 3 Tool/Special . | . . . Unused Backups 1 | . . 1 Power 1 | . . 1 Propulsion . | . . . Utility . | . . . Weapon . | . . . Tool/Special . | . . . Average Slot Usage (%) 90 | . 89 90 Engine 12 | . 14 10 Treads 6 | . . 10 Leg 12 | . 19 7 Hover 7 | . 8 7 Device 12 | . 5 17 Storage 12 | . 14 11 Protection 1 | . . 3 Energy Gun 15 | . 19 12 Energy Cannon 4 | . . 7 Ballistic Gun 3 | . 7 . Peak Build Rating 20 | 6 9 20 Average Rating 12 | 4 6 17 On Entrance 4 | . 6 8 Avg Prop Armor Cover (%) 7 | . . 7 Naked Turns . | . . . Heaviest Build 28 | 14 14 28 Greatest Support 43 | 20 20 43 Greatest Overweight (x) 2 | 2 1 2 Average Overweight (x) . | . . . Largest Inventory Capacity 10 | 8 8 10 Average Capacity 8 | 6 8 8 Most Carried 8 | 2 7 8 Average Carried 5 | 1 3 6 Final Capacity 10 | 8 8 10 Final Carried 7 | 2 7 5 Class Distribution -------------------- 58% | Mutant 41% | Scavenger-Mutant Dominant Class ---------------- Mutant | -10/Materials Scavenger-Mutant | -9/Materials Resources | -11 -10 -9 ----------- Run | Yrd Mat Mat Matter Collected 795 | 153 286 356 Remotely . | . . . Salvage Created 1803 | . 648 1155 Parts 128 | . 55 73 Haulers Intercepted 4 | . 2 2 Recyclers Shooed 3 | . 3 . Parts Field Recycled . | . . . Retrieved Matter . | . . . Parts Self-Destructed . | . . . Prevented . | . . . Parts Restored . | . . . Kills | -11 -10 -9 ------- Run | Yrd Mat Mat Combat Hostiles Destroyed 34 | . 10 24 Guns 22 | . 10 12 Cannons 10 | . . 10 AOE 1 | . . 1 Classes Destroyed 11 | . 8 3 Worker 3 | . 3 . Builder 4 | . 1 3 Hauler 4 | . 2 2 Recycler 1 | . 1 . Mechanic 1 | . . 1 Operator 3 | . 2 1 Watcher 5 | . 3 2 Swarmer 10 | . 6 4 Grunt 18 | . 4 14 Duelist 1 | . . 1 Sentry 5 | . . 5 Best Kill Streak 7 | . 7 6 Combat Bots Only 4 | . 3 4 Max Kills in Single Turn 3 | . 2 3 Gunslinging . | . . . Exploded 1 | . . 1 Melee . | . . . Uniques/NPCs Destroyed . | . . . Combat | -11 -10 -9 -------- Run | Yrd Mat Mat Hostile Shots Fired 242 | . 58 184 Missed 67 | . 17 50 Hits 175 | . 41 134 Melee 6 | . . 6 Projectile 169 | . 41 128 Critical Strikes 3 | . . 3 Damage Taken 2216 | . 424 1792 Core 440 | . 111 329 Absorbed by Shields . | . . . Regen/Repaired (Parts) 18 | . . 18 Core Remaining (%) 77 | 100 55 . Volleys Fired 140 | . 74 66 Largest 2 | . 2 2 Hottest 126 | . 80 126 Shots Fired 249 | . 129 120 Gun 200 | . 129 71 Cannon 48 | . . 48 Launcher 1 | . . 1 Special . | . . . Kinetic 41 | . 38 3 Thermal 145 | . 42 103 Explosive 1 | . . 1 Electromagnetic 62 | . 49 13 Robot Hit Streak 9 | . 9 9 Robot Miss Streak 7 | . 7 5 Penetration Max . | . . . Secondary Targets 2 | . 2 . Max Gunslinging Chain 1 | . 1 . Shots Hit Robots 146 | . 73 73 Core Hits 72 | . 30 42 Critical Kills 1 | . . 1 Critical Parts Destroyed . | . . . Critical Strikes 3 | . . 3 Burn 2 | . . 2 Meltdown 1 | . . 1 Melee Attacks . | . . . Impact . | . . . Slashing . | . . . Piercing . | . . . Sneak Attacks . | . . . Combat Hostiles . | . . . Follow-up Attacks . | . . . Damage Inflicted 2873 | . 1058 1815 Guns 1768 | . 1010 758 Cannons 690 | . . 690 Explosions 415 | . 48 367 Melee . | . . . Ramming . | . . . Kinetic 371 | . 345 26 Thermal 1932 | . 321 1611 Explosive 73 | . . 73 Electromagnetic 497 | . 392 105 Impact . | . . . Slashing . | . . . Piercing . | . . . Highest Corruption 3 | . . 3 Average Corruption 3 | . . 3 Corruption Purged . | . . . Corruption Blocked . | . . . Effects 7 | . . 7 Matter Fused 1 | . . 1 Heat Flow Errors 4 | . . 4 Energy Discharges 1 | . . 1 Weapon Failures 1 | . . 1 Overload Shots . | . . . Overflow Damage 45 | . . 45 Projectiles . | . . . Explosions 45 | . . 45 Melee . | . . . Knockbacks . | . . . Impact . | . . . Kinetic . | . . . Secondary . | . . . Self-Inflicted Damage 47 | . . 47 Shots 1 | . . 1 Rammed . | . . . Targets Rammed . | . . . Kicked . | . . . Crushed . | . . . Highest Temperature 249 | . 180 249 Average Temperature 63 | . 60 66 Received Heat Transfer 696 | . 123 573 Effects 1 | . . 1 Energy Bleed 1 | . . 1 Siege Activations . | . . . Martial Activations . | . . . Shielding Activations . | . . . Robots Disrupted . | . . . Combat Hostiles . | . . . Robots Corrupted 1 | . 1 . Combat Hostiles . | . . . Parts Fried 3 | . 3 . Impact Corruptions . | . . . Robots Melted 1 | . . 1 Combat Hostiles 1 | . . 1 Parts Melted 5 | . . 5 Heat Transferred 3552 | . 675 2877 Parts Sabotaged . | . . . Parts Stolen . | . . . Parts Stripped . | . . . Power Chain Reactions 1 | . 1 . Alert | -11 -10 -9 ------- Run | Yrd Mat Mat Maximum Alert Level 1 | . . 1 Low Security (%) 74 | 100 100 53 Level 1 25 | . . 46 Level 2 . | . . . Level 3 . | . . . Level 4 . | . . . Level 5 . | . . . High Security . | . . . Max Security . | . . . Peak Influence 338 | . 170 338 Initial 24 | . . 24 Average 133 | . 101 166 Influence Increases 1182 | . 361 821 Destroy 0b10 Robot/C 680 | . 200 480 Destroy 0b10 Robot/NC 105 | . 60 45 Destroy Leader 158 | . 50 108 Successful Hack 14 | . 4 10 Disable Machine 75 | . 15 60 Destroy Structure 60 | . 2 58 Partial Spotted 30 | . 15 15 Lose Combat Pursuer 60 | . 15 45 Influence Decreases 873 | . 302 571 Entered New Map 35 | . . 35 Time Decay 658 | . 282 376 Lost Part 180 | . 20 160 Squads Dispatched 8 | . 3 5 Investigation 3 | . 1 2 Extermination . | . . . Reinforcement 5 | . 2 3 Assault . | . . . Garrison . | . . . Intercept . | . . . Searches Triggered . | . . . Construction Impeded . | . . . Haulers Reinforced . | . . . Active Scanning Responses . | . . . Cargo Convoy Interrupts . | . . . Stealth | -11 -10 -9 --------- Run | Yrd Mat Mat Distress Signals 4 | . 2 2 Communications Jammed . | . . . Distress Signals . | . . . Times Spotted 62 | . 21 41 Peak Tracking Total 8 | . 4 8 Tactical Retreats 3 | . 1 2 Traps | -11 -10 -9 ------- Run | Yrd Mat Mat Traps Triggered 3 | . 1 2 Indirectly . | . . . Trap Hack Attempts . | . . . Triggered . | . . . Disarmed . | . . . Reprogrammed . | . . . Reused . | . . . Traps Extracted . | . . . Installed . | . . . Triggered . | . . . Machines | -11 -10 -9 ---------- Run | Yrd Mat Mat Machines Disabled 5 | . 1 4 Max in Single Turn 2 | . 1 2 Machines Repaired . | . . . Machines Dismantled . | . . . Machines Sabotaged . | . . . Overloaded Fab Kills . | . . . Hacking | -11 -10 -9 --------- Run | Yrd Mat Mat Machines Accessed 7 | . 2 5 Terminals 5 | . 2 3 Fabricators . | . . . Repair Stations 1 | . . 1 Recycling Units . | . . . Scanalyzers 1 | . . 1 Garrison Access . | . . . Total Hacks 12 | . 4 8 Successful 9 | . 2 7 Failed 3 | . 2 1 Catastrophic . | . . . Database Lockouts . | . . . Manual 5 | . 1 4 Terminals 9 | . 4 5 Fabricators . | . . . Repair Stations 2 | . . 2 Recycling Units . | . . . Scanalyzers 1 | . . 1 Garrison Access . | . . . Terminal Hacks 3 | . 2 1 Locate Traps 1 | . 1 . Zone Layout 2 | . 1 1 Fabricator Hacks . | . . . Repair Station Hacks 2 | . . 2 Scan Component 1 | . . 1 Repair 1 | . . 1 Recycling Unit Hacks . | . . . Scanalyzer 1 | . . 1 Retrieve Study 1 | . . 1 Garrison Access Hacks . | . . . Unauthorized Hacks 3 | . . 3 Terminals 3 | . . 3 Botnet 3 | . . 3 Fabricators . | . . . Repair Stations . | . . . Recycling Units . | . . . Scanalyzers . | . . . Garrison Access . | . . . Data Cores Recovered 1 | . 1 . Used . | . . . Hacking Detections 3 | . 2 1 Full Trace Events . | . . . Feedback Events . | . . . Feedback Blocked . | . . . Robot Schematics Acquired . | . . . Robots Built . | . . . Authchips . | . . . Time . | . . . Total Robot Build Rating . | . . . Part Schematics Acquired . | . . . Parts Built . | . . . Authchips . | . . . Time . | . . . Total Part Build Rating . | . . . Part Studies Acquired 1 | . . 1 Parts Repaired 1 | . . 1 Time 26 | . . 26 Parts Recycled . | . . . Recycled Matter . | . . . Retrieved Matter . | . . . Retrieved Components . | . . . Parts Scanalyzed . | . . . Part Schematics Acquired . | . . . Parts Damaged . | . . . Bothacking | -11 -10 -9 ------------ Run | Yrd Mat Mat Used RIF Installer . | . . . Robots Hacked . | . . . Non-combat . | . . . Combat . | . . . Robot Hacks Applied . | . . . Relay Couplers Released . | . . . Fabnet Peak Effective % . | . . . Robots Rewired . | . . . Allies Hacked . | . . . Hacks Repelled . | . . . Allies | -11 -10 -9 -------- Run | Yrd Mat Mat Total Allies . | . . . Largest Group . | . . . Highest-Rated Group . | . . . Highest-Rated Ally . | . . . Total Orders . | . . . Ally Attacks . | . . . Total Damage . | . . . Kills . | . . . Allies Corrupted . | . . . Allies Melted . | . . . Intel | -11 -10 -9 ------- Run | Yrd Mat Mat Active Infowar (turns) . | . . . Robot Analysis Total . | . . . Derelict Logs Recovered . | . . . Drone Launches . | . . . Drone Recoveries . | . . . Exploration | -11 -10 -9 ------------- Run | Yrd Mat Mat Turns Passed 1639 | 63 679 897 Spaces Moved 1108 | 44 502 562 Core 23 | 7 . 16 Treads 146 | . . 146 Legs 371 | 37 250 84 Wheels . | . . . Hover 568 | . 252 316 Flight . | . . . Fastest Speed 50 | 50 56 56 Average Speed 98 | 117 88 105 Slowest Speed 190 | 150 120 190 Overloaded Moves . | . . . Propulsion Burnouts . | . . . Robots Hopped . | . . . Potential Cave-ins . | . . . Cave-ins Triggered . | . . . Exploration Rate (%) 50 | 3 87 62 Regions Visited 2 Branch Regions . Pre-discovered Areas . | . . . Known Exits Taken . | . . . Unknown Exits Taken 2 | 1 1 . Scrap Searched . | . . . Spaces Dug . | . . . Terrain Destroyed 60 | . 2 58 Melee . | . . . Projectile 5 | . . 5 AOE 55 | . 2 53 Terrain Rammed . | . . . Walls Destroyed . | . . . Machines Disabled . | . . . Actions | -11 -10 -9 --------- Run | Yrd Mat Mat Total 1388 | 52 604 732 Wait 61 | 1 10 50 Move 1106 | 43 501 562 Hop . | . . . Pick Up 16 | 2 6 8 Fast Attach 15 | 6 2 7 Attach 10 | . 2 8 Detach 1 | . 1 . Swap 31 | . 7 24 Drop 8 | . 1 7 Fire 140 | . 74 66 Melee . | . . . Ram . | . . . Kick . | . . . Crush . | . . . Escape Stasis . | . . . Rewire . | . . . Trap . | . . . Miscellaneous . | . . . Route ------- -11/Scrapyard -10/Materials (discovered 5 exits: *Mat x3 / [*Min x2]) -9/Materials (discovered 3 exits: [*Mat] / [*Min x2]) History --------- Turn | Location | Event 15 | -11/Scrapyard | Discovered new exit (range 16) 64 | -11/Scrapyard | Entered Materials 194 | -10/Materials | Discovered new exit (range 11) 292 | -10/Materials | Discovered new exit (range 12) 308 | -10/Materials | Build established: Mutant 367 | -10/Materials | Discovered new exit (range 3) 612 | -10/Materials | Discovered new exit (range 14) 676 | -10/Materials | Discovered new exit (range 15) 743 | -10/Materials | Entered another Materials area 743 | -9/Materials | Evolved 2 slots: Propulsion x1, Utility x1 779 | -9/Materials | Discovered new exit (range 18) 909 | -9/Materials | Repaired Hover Unit+ 1005 | -9/Materials | Discovered new exit (range 4) 1074 | -9/Materials | Lost 3 parts (1p1n1w) 1081 | -9/Materials | Core integrity fell below 50% 1110 | -9/Materials | Lost 3 parts (1p2n) 1177 | -9/Materials | Discovered new exit (range 16) 1206 | -9/Materials | Build established: Scavenger-Mutant 1620 | -9/Materials | Lost 4 parts (1p1n1u1w) 1638 | -9/Materials | Core integrity fell below 20% 1640 | -9/Materials | Self-destructed Last Messages --------------- 01594_ Katana melted. 01594_ L-31 Rogue destroyed. 01596_ Acquired 25 matter. 01607_ ALERT: Hostiles spotted, dispatching reinforcements to Terminal M002. 01615_ G-34 Mercenary destroyed. 01619_ R-06 Scavenger collects Flight Unit. 01623_ Triggered Alarm Trap. 01623_ An alarm sounds. 01623_ ALERT: Alarm triggered, dispatching investigation squad. 01628_ S-10 Pest destroyed. 01629_ Imp. Aluminum Leg destroyed. 01630_ K-01 Serf collects debris. 01631_ System corrupted: Pulse Rifle failed to cycle. 01631_ R-06 Scavenger collects Aluminum Leg. 01631_ ALERT: Hostiles spotted, dispatching reinforcements to Terminal M005. 01633_ Weight Redist. System destroyed. 01633_ K-01 Serf collects debris. 01639_ Imp. Treads destroyed. Map ----- +----------------------------------------------------+ | ????????????????????????????????????????? | | ????????????????????????????????????????? | | ????????????????????????????????????????? | | ????????????????????????????????????????? | | ????????????????????????????????????????? | | ????????????????????????????????????????? | | ????????????????????????????????????????? | | ????????????????????????????????????????? | | ????????????????????????????????????????? | | ????????????????????????????????????????? | | ??????????????????????? ????????????? | | ?????????????????????? #???????????? | | ?????????????????????? s g#???????????? | | ?????????????????????? s[ #???????????? | | ?????????????????????? kg=#???????????? | | ??????????????????????? s ????????????? | | ??????????????????????? g????????????? | | ??????????????????????? ????????????? | | ??????????????????????? ! ????????????? | | ???????????????????????? ?????????????? | | ???????????????????????? k?????????????? | | ???????????????????????? ?????????????? | | ???????????????????????? %[?????????????? | | ????????????????????????#g#############?? | | ?????????????????"??????# ;## #?? | | ?? #???????????""" ????#@#?# ! #?? | | ?? ####????? """ #### ### #?? | | ? ???? " # """ """ #?? | | ? ??? !% + """ """ #?? | | # ??? # """ """ ??? | | ]#??????#"T"############ # ??? | | = #?????????????????????# # ??? | | "%= ##????????????????????# ##########??? | | %%= "######????############%#???????????? | | %%! T % =########????? | | % = +????? | | % *= ###?????? | | ! #???????? | | """ #########+###+#???????? | | """ ### #????# #???????? | | """^ "?# #????# """ #???????? | | Y?# #????# """ #???????? | | "?# ###### """ #???????? | | #?# + #???????? | | #### #?# ###### """ #???????? | | ???# " #?# #????# """ #???????? | | ???# """ #?# #????# """ #???????? | | #### "" #?# #????# #???????? | | # "" #?# #????##########???????? | | """# ###+####??????????????????? | +----------------------------------------------------+ Best States ------------- Heat Dissipation 42 Energy Generation 12 Energy Capacity 265 Matter Stores 300 Matter Capacity 300 Sight Range 16 Terrain Scan Density 10 Additional Mass Support 6 Armor Coverage 150 Evasion (%) 55 Recoil Reduction 2 Item Schematics ----------------- None Robot Schematics ------------------ None Fabricated ------------ Nothing Repaired ---------- Hover Unit | 40% | -9/Materials Studied --------- Hover Unit | -9/Materials | Hacked Alien Tech Used ----------------- None Achievements -------------- None Challenges ------------ None Game ------ Seed AntigravGodPod Manual? 0 Play Time 00:20:26 Cumulative 71.0 hours Start 2026.06.19 @ 23:17:03 End 2026.06.19 @ 23:34:37 Sessions 1 Manual Loads 0 Difficulty Rogue Special Mode None Game No. 120 Rogue 120 Adventurer 0 Explorer 0 Win Type - Total 0 Types 0/0/0/0/0/0/0/0/0/0 Lore% 21 Gallery% 30 Achievement% 26 Wizard Run 0 Options --------- Layout 0 ASCII 0 Keyboard 0 Movement Mouse Keybinds 0 Fullscreen 1 Font 24/Smallcaps Map View 38x25 Zoom Use 99% Tactical HUD 1 Map Filters NONE Filters NONE Steam 1 RUN: a758d651-ceb5-4bcd-9504-7b5e0b6521a9